Cogmind - Beta 11 @@@ ROGUE MODE // 2022.04.18 @ 20:13:09 Player: Momo Result: Destroyed by L-41 Fighter with Axe Performance ------------- Evolutions (4) 2000 Regions Visited (16) 3200 Robots Destroyed (77) 385 Value Destroyed (2948) 2948 Prototype IDs (12) 240 Alien Tech Used (0) 0 Bonus (3761) 3761 TOTAL SCORE: 12534 Bonus ------- High Alert Combat Kills 272 Follower Combat Kills 1608 Aligned with FarCom 300 Met Imprinter 300 Destroyed Z-Imprinter 1000 Triggered Deep Caves Wall 500 Exposed GOLEM Chamber 500 A7 Reached Mainframe 300 Met R17 at Cetus 500 Friendly Fire -1519 Cogmind --------- Core Integrity 0/850 Matter 144/300 Energy 67/100 System Corruption 4% Temperature Cool (0) Movement Core (50) Location -6/Hub_04(d) Parts ------- > --- POWER (1) -------- (None) > --- PROPULSION (4) --- Assembled Alloy Leg > --- UTILITY (7) ------ GOLEM Unit > --- WEAPON (3) ------- (None) > --- INVENTORY (5) ---- Quantum Reactor Centrium Medium Armor Plating Advanced Force Field Phasing Sabre Peak State ------------ > --- POWER ------------ Improved Deuterium Engine > --- PROPULSION ------- Flying Fortress v7 > --- UTILITY ---------- Large Storage Unit Improved Trap Scanner Improved Sensor Array Makeshift Salvage Targeting Computer Advanced Targeting Computer Improved Hacking Suite System Shield > --- WEAPON ----------- Heavy Battle Rifle Heavy Machine Gun RU-N14's Throwing Claymores > --- INVENTORY -------- Experimental Heat Sink High-capacity Matter Pod Gravity Neutralizer Launcher Guidance Computer Kinecellerator Weapon Cycler Improved Utility Shielding Makeshift Armor Plating Mobile Refinery Mk. CCLXVII Improved Trap Extractor GOLEM Unit Long-range Missile Launcher RU-N14's Throwing Claymores Heavy Pick [Rating: 83] Favorites ----------- Power Improved Deuterium Engine Engine Improved Deuterium Engine Power Core Light Fission Core Reactor Light Antimatter Reactor Propulsion Carbon-fiber Leg Treads Light Treads Leg Carbon-fiber Leg Flight Unit Flying Fortress v7 Utility Large Storage Unit Device Improved Sensor Array Storage Large Storage Unit Processor Makeshift Salvage Targeting Computer Hackware Improved Hacking Suite Protection Makeshift Armor Plating Weapon Heavy Battle Rifle Energy Gun Heavy Beamcaster Ballistic Gun Heavy Battle Rifle Ballistic Cannon Advanced Assault Cannon Launcher Shock Bomb Launcher Special Weapon RU-N14's Throwing Claymores Slashing Weapon Phasing Sabre Piercing Weapon Heavy Pick Build | -11 -10 -10 -10 -9 -8 -7 -7 -7 -7 -7 -6 -6 -6 -6 -6 -6 ------- Run | Scr Mat Min Exi Min Mat Fac Low Low Zio Dee Pro Fac Ext Cet Arc Hub Slots Evolved 8 | . . . . . 4 2 . . . . . 2 . . . . Power . | . . . . . . . . . . . . . . . . . Propulsion 2 | . . . . . 2 . . . . . . . . . . . Utility 5 | . . . . . 2 1 . . . . . 2 . . . . Weapon 1 | . . . . . . 1 . . . . . . . . . . Parts Attached 127 | 6 . 1 3 2 6 4 1 3 10 10 4 16 50 4 1 6 Power 12 | 1 . . . . . . . . 1 1 . 3 4 . 1 1 Engine 7 | 1 . . . . . . . . . 1 . 3 1 . . 1 Core 3 | . . . . . . . . . 1 . . . 1 . 1 . Reactor 2 | . . . . . . . . . . . . . 2 . . . Propulsion 21 | 2 . 1 1 . 1 . . . . . . . 16 . . . Treads 3 | 2 . . . . . . . . . . . . 1 . . . Leg 15 | . . . . . . . . . . . . . 15 . . . Wheel . | . . . . . . . . . . . . . . . . . Hover . | . . . . . . . . . . . . . . . . . Flight 3 | . . 1 1 . 1 . . . . . . . . . . . Utility 45 | 1 . . 1 2 3 3 . . 6 4 3 5 13 2 . 2 Device 21 | . . . . 1 1 3 . . 3 3 2 2 4 . . 2 Storage 4 | 1 . . 1 1 1 . . . . . . . . . . . Processor 7 | . . . . . . . . . 1 1 . . 4 1 . . Hackware 3 | . . . . . . . . . . . . 2 1 . . . Protection 10 | . . . . . 1 . . . 2 . 1 1 4 1 . . Artifact . | . . . . . . . . . . . . . . . . . Weapon 49 | 2 . . 1 . 2 1 1 3 3 5 1 8 17 2 . 3 Energy Gun 1 | . . . . . . . . . . . . . 1 . . . Energy Cannon . | . . . . . . . . . . . . . . . . . Ballistic Gun 16 | 2 . . 1 . 1 . . 1 2 2 . 1 5 1 . . Ballistic Cannon 6 | . . . . . . . . . . . . 1 4 1 . . Launcher 3 | . . . . . . . 1 . . . . . 2 . . . Special Weapon 8 | . . . . . . . . . 1 2 1 3 1 . . . Impact Weapon . | . . . . . . . . . . . . . . . . . Slashing Weapon 8 | . . . . . . . . 1 . . . . 4 . . 3 Piercing Weapon 7 | . . . . . 1 1 . 1 . 1 . 3 . . . . Special Melee Weapon . | . . . . . . . . . . . . . . . . . Unidentified Prototypes 11 | . . . 2 . 1 . . . 2 1 . 2 . 2 . 1 Parts Lost 30 | . 4 . . . . . . . 1 1 . 1 17 1 . 5 Power 3 | . 1 . . . . . . . . . . 1 1 . . . Propulsion 13 | . 2 . . . . . . . . . . . 8 . . 3 Utility 3 | . . . . . . . . . 1 . . . . 1 . 1 Weapon 11 | . 1 . . . . . . . . 1 . . 8 . . 1 Highest Loss Streak 7 | . 4 . . . . . . . 1 1 . 1 7 1 . 5 To Critical Strikes 1 | . . . . . . . . . . . . . . 1 . . Average Slot Usage (%) 75 | . 84 28 40 64 45 58 61 68 68 70 76 77 96 99 100 72 Engine 2 | . 14 . . . . . . . . 4 7 5 1 6 4 2 Treads 1 | . 27 . . . . . . . . . . . . . . . Leg 7 | . . . . . . . . . . . . . 22 26 26 18 Flight 6 | . . 14 15 28 9 7 7 7 7 7 7 6 . . . . Device 9 | . . . . 7 15 23 23 23 15 7 14 14 3 6 6 6 Storage 7 | . 14 . 11 14 9 7 7 7 7 7 7 6 6 6 6 4 Processor 10 | . . . . . . . . . 3 13 15 12 19 25 26 18 Hackware 4 | . . . . . . . . . . . . 10 13 3 . . Protection 3 | . . . . . 3 7 7 7 10 7 . . 3 3 6 4 Ballistic Gun 10 | . 27 14 14 14 4 7 . 3 14 15 15 13 7 . . . Ballistic Cannon 2 | . . . . . . . . . . . . . . 19 20 13 Slashing Weapon 2 | . . . . . . . . 3 . . . . 8 . . . Piercing Weapon 2 | . . . . . 4 4 7 14 7 . . 5 . . . . Naked Turns 1 | . . . . . . . . . . . . . . . . 1 Heaviest Build 59 | 12 12 1 15 25 38 42 38 37 56 50 49 51 55 55 59 59 Greatest Support 70 | 40 40 4 8 8 50 50 50 50 50 50 50 50 70 65 65 65 Greatest Overweight (x) 4 | 1 3 . 4 3 . . . . 1 . . 1 1 . . 3 Average Overweight (x) . | . . . 1 1 . . . . . . . . . . . . Largest Inventory Capacity 15 | 8 8 5 8 10 15 15 15 15 15 15 15 15 15 15 15 15 Average Capacity 13 | 7 8 5 7 9 14 15 15 15 15 15 15 15 15 15 15 12 Most Carried 15 | . 4 5 8 10 13 14 15 15 15 15 15 15 15 15 15 15 Average Carried 12 | . 2 4 6 9 7 13 13 14 14 14 15 14 14 14 14 11 Final Capacity 15 | 8 8 5 8 10 15 15 15 15 15 15 15 15 15 15 15 5 Final Carried 15 | . 4 4 8 10 12 14 15 15 15 15 15 15 14 14 15 4 Class Distribution -------------------- 48% | Mutant 16% | Scavenger-Mutant 10% | Scavenger-Gunner 6% | Hacker-Mutant 5% | Gunner 5% | Derelict-Mutant Dominant Class ---------------- Mutant | -10/Materials Mutant | -10/Mines Mutant | -10/Exiles Mutant | -9/Mines Mutant | -8/Materials Mutant | -7/Factory Mutant | -7/Lower Caves Mutant | -7/Lower Caves Mutant | -7/Zion Derelict-Mutant | -7/Deep Caves Gunner | -6/Proximity Caves Hacker-Mutant | -6/Factory Scavenger-Mutant | -6/Extension Scavenger-Gunner | -6/Cetus Scavenger-Gunner | -6/Archives Scavenger-Gunner | -6/Hub_04(d) Resources | -11 -10 -10 -10 -9 -8 -7 -7 -7 -7 -7 -6 -6 -6 -6 -6 -6 ----------- Run | Scr Mat Min Exi Min Mat Fac Low Low Zio Dee Pro Fac Ext Cet Arc Hub Matter Collected 2825 | 67 177 . . 278 . 114 12 82 76 268 35 188 922 438 118 50 Remotely . | . . . . . . . . . . . . . . . . . Salvage Created 3322 | . 186 . . . 54 197 11 . 7 268 130 475 1493 277 126 98 Parts 163 | . 11 . . . 4 9 2 . 2 9 6 34 67 11 4 4 Haulers Intercepted 1 | . . . . . . . . . . . . 1 . . . . Recyclers Shooed 3 | . 1 . . . . . . . . . . 1 1 . . . Parts Field Recycled . | . . . . . . . . . . . . . . . . . Retrieved Matter . | . . . . . . . . . . . . . . . . . Parts Self-Destructed 5 | . . . . . . . . . . . 5 . . . . . Prevented . | . . . . . . . . . . . . . . . . . Kills | -11 -10 -10 -10 -9 -8 -7 -7 -7 -7 -7 -6 -6 -6 -6 -6 -6 ------- Run | Scr Mat Min Exi Min Mat Fac Low Low Zio Dee Pro Fac Ext Cet Arc Hub Combat Hostiles Destroyed 60 | . 4 . . . 1 2 . . . 11 5 7 22 3 3 2 Melee 7 | . . . . . . . . . . . . . 7 . . . Guns 17 | . 4 . . . 1 2 . . . 2 1 2 5 . . . Cannons 16 | . . . . . . . . . . . 1 4 3 3 3 2 AOE 20 | . . . . . . . . . . 9 3 1 7 . . . Classes Destroyed 17 | . 3 . . . 1 1 . . . 2 2 4 4 . . . Worker 2 | . . . . . . . . . . . . 2 . . . . Builder 4 | . . . . . . . . . . . . 3 1 . . . Hauler 1 | . . . . . . . . . . . . 1 . . . . Recycler 4 | . 1 . . . . . . . . . . 1 2 . . . Operator 3 | . . . . . . 1 1 . . . . . 1 . . . Watcher 2 | . . . . . . . . . . . . . 2 . . . Swarmer 3 | . 3 . . . . . . . . . . . . . . . Cutter 2 | . . . . . . . . . . . . 2 . . . . Saboteur 1 | . . . . . . . . . . . . . 1 . . . Grunt 16 | . 1 . . . . . . . . . 3 2 7 2 . 1 Brawler 2 | . . . . . . . . . . . 1 . 1 . . . Duelist 1 | . . . . . . . . . . . . . . . . 1 Sentry 13 | . . . . . 1 2 . . . . . 2 5 . 3 . Hunter 4 | . . . . . . . . . . . . . 3 1 . . Programmer 4 | . . . . . . . . . . . 1 1 2 . . . Z-Light 5 | . . . . . . . . . . 5 . . . . . . Assembled 5 | . . . . . . . . . . 5 . . . . . . Wasp 1 | . . . . . . . . . 1 . . . . . . . Thug 2 | . . . . . . . . . . . . . . 2 . . Butcher 1 | . . . . . . . . . . . . . 1 . . . Guerrilla 5 | . . . . . . . . . . . . . 4 1 . . Best Kill Streak 11 | . 4 . . . 1 2 . . . 5 5 10 11 2 2 1 Combat Bots Only 10 | . 4 . . . 1 2 . . . 5 5 5 10 2 2 1 Max Kills in Single Turn 4 | . 1 . . . 1 1 1 . 1 2 2 3 4 1 1 1 Gunslinging . | . . . . . . . . . . . . . . . . . Exploded 4 | . . . . . . . . . . 2 2 1 4 . . . Melee 1 | . . . . . . . . . . . . . 1 . . . Uniques/NPCs Destroyed 1 | . . . . . . . . . . 1 . . . . . . Z-Imprinter (-7/Deep Caves) Combat | -11 -10 -10 -10 -9 -8 -7 -7 -7 -7 -7 -6 -6 -6 -6 -6 -6 -------- Run | Scr Mat Min Exi Min Mat Fac Low Low Zio Dee Pro Fac Ext Cet Arc Hub Damage Taken 6582 | . 651 65 . . 31 21 22 122 529 490 39 498 2737 230 117 1030 Core 1200 | . 112 54 . . 17 . 14 . . 133 . 67 505 55 . 243 Absorbed by Shields 167 | . . . . . . . . . . . . . 122 45 . . Redirected to Shielding 3 | . . . . . . 3 . . . . . . . . . . Core Remaining (%) 77 | 100 . . . 33 96 . . . . . 79 . . . . . Volleys Fired 163 | . 12 . . . . . 1 12 14 21 9 16 44 19 10 5 Largest 3 | . 2 . . . . . 1 1 1 3 3 2 3 3 3 3 Hottest 144 | . 40 . . . . . 36 30 33 96 63 63 128 144 144 144 Shots Fired 330 | . 24 . . . 1 7 9 12 14 32 13 25 94 54 30 15 Gun 178 | . 24 . . . 1 7 8 12 6 20 6 18 76 . . . Cannon 108 | . . . . . . . . . . . . . 9 54 30 15 Launcher 4 | . . . . . . . 1 . . . . . 3 . . . Special 40 | . . . . . . . . . 8 12 7 7 6 . . . Kinetic 283 | . 24 . . . 1 7 8 12 6 20 6 18 82 54 30 15 Thermal 3 | . . . . . . . . . . . . . 3 . . . Explosive 43 | . . . . . . . . . 8 12 7 7 9 . . . Electromagnetic 1 | . . . . . . . 1 . . . . . . . . . Robot Hit Streak 18 | . 11 . . . 12 15 4 . . 5 2 13 13 18 8 4 Robot Miss Streak 3 | . 1 . . . . 2 3 . . 2 2 2 3 3 3 1 Penetration Max 1 | . . . . . . . . . . . . . 1 . . . Secondary Targets 1 | . . . . . . . . . . . . . 1 . . . Max Gunslinging Chain 1 | . . . . . . . . . . . . . 1 . . . Autonomous 16 | . . . . . 1 7 8 . . . . . . . . . Shots Hit Robots 207 | . 18 . . . 1 6 5 . . 12 3 21 80 33 19 9 Core Hits 187 | . 11 . . . 1 5 1 . 1 16 10 19 85 21 10 7 Critical Kills 3 | . . . . . . . . . . . . . 3 . . . Critical Parts Destroyed 8 | . . . . . . . 2 . . . . . 6 . . . Critical Strikes 18 | . . . . . . . 2 . . . . . 11 4 1 . Burn 1 | . . . . . . . . . . . . . 1 . . . Destroy 11 | . . . . . . . 2 . . . . . 9 . . . Blast 5 | . . . . . . . . . . . . . . 4 1 . Sever 1 | . . . . . . . . . . . . . 1 . . . Melee Attacks 60 | . . . . . 3 5 1 3 . . . 16 28 . . 4 Impact . | . . . . . . . . . . . . . . . . . Slashing 32 | . . . . . . . . . . . . . 28 . . 4 Piercing 28 | . . . . . 3 5 1 3 . . . 16 . . . . Sneak Attacks 8 | . . . . . . 1 . . . . . 3 4 . . . Combat Hostiles 1 | . . . . . . . . . . . . . 1 . . . Follow-up Attacks 3 | . . . . . . . . . . . . . 3 . . . Damage Inflicted 10552 | . 154 . . . 29 194 208 . 236 1450 883 1544 3948 1059 560 287 Guns 2229 | . 150 . . . 29 134 147 . . 249 44 245 1231 . . . Cannons 2044 | . . . . . . . . . . . . . 138 1059 560 287 Explosions 4492 | . . . . . . . 21 . 236 1092 752 894 1497 . . . Melee 1317 | . . . . . . 60 40 . . . . 245 972 . . . Ramming 4 | . 4 . . . . . . . . . . . . . . . Kinetic 4189 | . 150 . . . 29 134 147 . . 249 44 245 1285 1059 560 287 Thermal 84 | . . . . . . . . . . . . . 84 . . . Explosive 4471 | . . . . . . . . . 236 1092 752 894 1497 . . . Electromagnetic 21 | . . . . . . . 21 . . . . . . . . . Impact . | . . . . . . . . . . . . . . . . . Slashing 1438 | . . . . . . . . . . 109 87 160 1082 . . . Piercing 345 | . . . . . . 60 40 . . . . 245 . . . . Highest Corruption 4 | . 3 3 3 3 1 . . . . . . 2 4 4 4 4 Average Corruption 2 | . 2 3 3 3 1 . . . . . . 1 2 4 4 4 Corruption Purged . | . . . . . . . . . . . . . . . . . Corruption Blocked . | . . . . . . . . . . . . . . . . . Effects 52 | . 3 . 6 8 3 . . . . . . 2 20 5 3 2 Message Errors 15 | . 2 . 3 2 1 . . . . . . 1 4 1 1 . Matter Fused 13 | . 1 . 1 1 1 . . . . . . 1 7 . 1 . Heat Flow Errors 10 | . . . 1 3 . . . . . . . . 5 1 . . Energy Discharges 3 | . . . . 1 . . . . . . . . . 1 . 1 Data Loss (minor) 5 | . . . 1 . 1 . . . . . . . 1 . 1 1 Data Loss (major) 1 | . . . . 1 . . . . . . . . . . . . Misfires 1 | . . . . . . . . . . . . . 1 . . . Alerts 2 | . . . . . . . . . . . . . 1 1 . . Weapon Failures 2 | . . . . . . . . . . . . . 1 1 . . Overload Shots . | . . . . . . . . . . . . . . . . . Overflow Damage 198 | . . . . . . . 15 . 19 21 . 27 106 . 10 . Projectiles 31 | . . . . . . . . . . 15 . 6 . . 10 . Explosions 82 | . . . . . . . . . 19 6 . 20 37 . . . Melee 85 | . . . . . . . 15 . . . . 1 69 . . . Knockbacks 13 | . . . . . . . . . . . . . 4 3 . 6 Impact . | . . . . . . . . . . . . . . . . . Kinetic 10 | . . . . . . . . . . . . . 4 3 . 3 Secondary 3 | . . . . . . . . . . . . . . . . 3 Self-Inflicted Damage 618 | . . . . . . . 14 . 535 . . . 69 . . . Shots 8 | . . . . . . . 1 . 5 . . . 2 . . . Rammed 2 | . 2 . . . . . . . . . . . . . . . Targets Rammed 2 | . 2 . . . . . . . . . . . . . . . Kicked . | . . . . . . . . . . . . . . . . . Crushed . | . . . . . . . . . . . . . . . . . Highest Temperature 263 | . 12 . 174 236 . . . 6 10 186 20 55 263 139 3 30 Average Temperature 52 | . 8 . 88 98 . . . 3 7 67 15 25 54 26 3 8 Received Heat Transfer 1564 | . 135 36 . . 9 6 . . . 124 18 90 636 66 18 426 Siege Activations . | . . . . . . . . . . . . . . . . . Robots Corrupted . | . . . . . . . . . . . . . . . . . Combat Hostiles . | . . . . . . . . . . . . . . . . . Parts Fried 1 | . . . . . . . . . . . . . 1 . . . Impact Corruptions . | . . . . . . . . . . . . . . . . . Robots Melted . | . . . . . . . . . . . . . . . . . Combat Hostiles . | . . . . . . . . . . . . . . . . . Parts Melted 1 | . . . . . . . . . . . . . . 1 . . Heat Transferred 185 | . . . . . . . . . . . . . 185 . . . Parts Sabotaged . | . . . . . . . . . . . . . . . . . Parts Stolen 1 | . . . . . . . 1 . . . . . . . . . Parts Stripped . | . . . . . . . . . . . . . . . . . Power Chain Reactions . | . . . . . . . . . . . . . . . . . Missiles Intercepted . | . . . . . . . . . . . . . . . . . Alert | -11 -10 -10 -10 -9 -8 -7 -7 -7 -7 -7 -6 -6 -6 -6 -6 -6 ------- Run | Scr Mat Min Exi Min Mat Fac Low Low Zio Dee Pro Fac Ext Cet Arc Hub Peak Influence 794 | . 102 35 . . 96 203 . . . . . 374 646 794 449 193 Initial 317 | . . 35 . . . 43 . . . . . 75 119 269 317 156 Average 265 | . 40 35 . . 28 169 . . . . . 182 420 568 427 159 Maximum Alert Level 3 | . . . . . . 1 . . . . . 1 2 3 2 . Low Security (%) 45 | 100 100 100 . 100 100 53 . . . . . 62 6 . . 100 Level 1 23 | . . . . . . 46 . . . . . 37 36 10 23 . Level 2 30 | . . . . . . . . . . . . . 56 79 76 . Level 3 . | . . . . . . . . . . . . . . 10 . . Level 4 . | . . . . . . . . . . . . . . . . . Level 5 . | . . . . . . . . . . . . . . . . . High Security . | . . . . . . . . . . . . . . . . . Max Security . | . . . . . . . . . . . . . . . . . Squads Dispatched 9 | . 1 . . . . 1 . . . . . 2 3 . . 2 Investigation 2 | . . . . . . 1 . . . . . . . . . 1 Extermination 1 | . . . . . . . . . . . . 1 . . . . Reinforcement 5 | . 1 . . . . . . . . . . 1 2 . . 1 Assault 1 | . . . . . . . . . . . . . 1 . . . Garrison . | . . . . . . . . . . . . . . . . . Intercept . | . . . . . . . . . . . . . . . . . Searches Triggered . | . . . . . . . . . . . . . . . . . Construction Impeded 1 | . . . . . . . . . . . . . 1 . . . Haulers Reinforced . | . . . . . . . . . . . . . . . . . Active Scanning Responses . | . . . . . . . . . . . . . . . . . Cargo Convoy Interrupts . | . . . . . . . . . . . . . . . . . Stealth | -11 -10 -10 -10 -9 -8 -7 -7 -7 -7 -7 -6 -6 -6 -6 -6 -6 --------- Run | Scr Mat Min Exi Min Mat Fac Low Low Zio Dee Pro Fac Ext Cet Arc Hub Distress Signals 4 | . 2 . . . . . . . . . . . . 2 . . Communications Jammed . | . . . . . . . . . . . . . . . . . Distress Signals . | . . . . . . . . . . . . . . . . . Times Spotted 148 | . 15 2 . . 4 2 4 4 . 30 5 8 37 18 5 14 Peak Tracking Total 34 | . 8 2 . . 3 2 2 4 . 34 4 6 7 5 1 11 Tactical Retreats 3 | . 1 . . . . . . . . 1 . . 1 . . . Traps | -11 -10 -10 -10 -9 -8 -7 -7 -7 -7 -7 -6 -6 -6 -6 -6 -6 ------- Run | Scr Mat Min Exi Min Mat Fac Low Low Zio Dee Pro Fac Ext Cet Arc Hub Traps Triggered 9 | . 3 . . . 1 . . . . . . 3 1 . . 1 Indirectly . | . . . . . . . . . . . . . . . . . Trap Hack Attempts . | . . . . . . . . . . . . . . . . . Triggered . | . . . . . . . . . . . . . . . . . Disarmed . | . . . . . . . . . . . . . . . . . Reprogrammed 6 | . . . . . . 6 . . . . . . . . . . Reused . | . . . . . . . . . . . . . . . . . Traps Extracted . | . . . . . . . . . . . . . . . . . Installed . | . . . . . . . . . . . . . . . . . Triggered . | . . . . . . . . . . . . . . . . . Machines | -11 -10 -10 -10 -9 -8 -7 -7 -7 -7 -7 -6 -6 -6 -6 -6 -6 ---------- Run | Scr Mat Min Exi Min Mat Fac Low Low Zio Dee Pro Fac Ext Cet Arc Hub Machines Disabled 14 | . . . . . . 2 . . . 4 . 2 1 2 2 1 Max in Single Turn 1 | . . . . . . 1 . . . 1 . 1 1 1 1 1 Machines Sabotaged . | . . . . . . . . . . . . . . . . . Garrisons Compromised . | . . . . . . . . . . . . . . . . . Overloaded Fab Kills . | . . . . . . . . . . . . . . . . . Hacking | -11 -10 -10 -10 -9 -8 -7 -7 -7 -7 -7 -6 -6 -6 -6 -6 -6 --------- Run | Scr Mat Min Exi Min Mat Fac Low Low Zio Dee Pro Fac Ext Cet Arc Hub Machines Accessed 45 | . 2 . . 1 5 6 1 1 1 . . 11 14 1 . 2 Terminals 35 | . 2 . . . 5 3 . . . . . 8 14 1 . 2 Fabricators 4 | . . . . . . 1 . . . . . 3 . . . . Repair Stations . | . . . . . . . . . . . . . . . . . Recycling Units . | . . . . . . . . . . . . . . . . . Scanalyzers 1 | . . . . . . 1 . . . . . . . . . . Garrison Access 1 | . . . . . . 1 . . . . . . . . . . Total Hacks 102 | . 3 . . 1 8 12 1 1 2 . . 33 33 3 . 5 Successful 57 | . 1 . . 1 5 7 1 1 2 . . 22 15 1 . 1 Failed 45 | . 2 . . . 3 5 . . . . . 11 18 2 . 4 Catastrophic 5 | . 1 . . . 1 . . . . . . . 2 . . 1 Database Lockouts . | . . . . . . . . . . . . . . . . . Manual 39 | . 1 . 1 . 3 2 . . 1 . . 14 12 1 . 4 Terminals 80 | . 3 . . . 8 5 . . . . . 23 33 3 . 5 Fabricators 11 | . . . . . . 1 . . . . . 10 . . . . Repair Stations . | . . . . . . . . . . . . . . . . . Recycling Units . | . . . . . . . . . . . . . . . . . Scanalyzers 4 | . . . . . . 4 . . . . . . . . . . Garrison Access 2 | . . . . . . 2 . . . . . . . . . . Terminal Hacks 40 | . 1 . . 1 4 3 1 1 2 . . 13 12 1 . 1 Part Schematic 3 | . . . . . . . . . 2 . . 1 . . . . Open Door 11 | . . . . 1 . . 1 1 . . . . 7 1 . . Open DSF 1 | . . . . . . . . . . . . 1 . . . . Branch Access Points 3 | . 1 . . . . 1 . . . . . 1 . . . . Emergency Access Points 2 | . . . . . . . . . . . . 2 . . . . Alert Level 1 | . . . . . 1 . . . . . . . . . . . Unreport Threat 2 | . . . . . 1 . . . . . . . 1 . . . Locate Traps 4 | . . . . . 1 . . . . . . 2 1 . . . Reprogram Traps 1 | . . . . . . 1 . . . . . . . . . . Reinforcement Status 1 | . . . . . . . . . . . . . 1 . . . Recall Investigation 1 | . . . . . . . . . . . . . . . . 1 Recall Reinforcements 1 | . . . . . . . . . . . . . 1 . . . Registered Components 1 | . . . . . . . . . . . . 1 . . . . Zone Layout 8 | . . . . . 1 1 . . . . . 5 1 . . . Fabricator Hacks 4 | . . . . . . 1 . . . . . 3 . . . . Load Schematic 1 | . . . . . . . . . . . . 1 . . . . Build 3 | . . . . . . 1 . . . . . 2 . . . . Repair Station Hacks . | . . . . . . . . . . . . . . . . . Recycling Unit Hacks . | . . . . . . . . . . . . . . . . . Scanalyzer 3 | . . . . . . 3 . . . . . . . . . . Insert Component 1 | . . . . . . 1 . . . . . . . . . . Analyze 2 | . . . . . . 2 . . . . . . . . . . Garrison Access Hacks . | . . . . . . . . . . . . . . . . . Unauthorized Hacks 10 | . . . . . 1 . . . . . . 6 3 . . . Terminals 9 | . . . . . 1 . . . . . . 5 3 . . . Assimilate 1 | . . . . . 1 . . . . . . . . . . . Botnet 8 | . . . . . . . . . . . . 5 3 . . . Fabricators 1 | . . . . . . . . . . . . 1 . . . . Prioritize 1 | . . . . . . . . . . . . 1 . . . . Repair Stations . | . . . . . . . . . . . . . . . . . Recycling Units . | . . . . . . . . . . . . . . . . . Scanalyzers . | . . . . . . . . . . . . . . . . . Garrison Access . | . . . . . . . . . . . . . . . . . Data Cores Recovered 1 | . . . . . . 1 . . . . . . . . . . Used 1 | . . . . . . 1 . . . . . . . . . . Hacking Detections 30 | . 2 . . . 2 5 . . . . . 10 8 1 . 2 Full Trace Events 2 | . . . . . 1 1 . . . . . . . . . . Feedback Events . | . . . . . . . . . . . . . . . . . Feedback Blocked . | . . . . . . . . . . . . . . . . . Robot Schematics Acquired 4 | . . . . . . . . . 4 . . . . . . . Robots Built 1 | . . . . . . . . . . . . 1 . . . . Authchips . | . . . . . . . . . . . . . . . . . Time 152 | . . . . . . . . . . . . 152 . . . . Total Robot Build Rating 5 | . . . . . . . . . . . . 5 . . . . Part Schematics Acquired 19 | . . . . . . 1 . . 17 . . 1 . . . . Parts Built 4 | . . . . . . 2 . . . . . 2 . . . . Authchips . | . . . . . . . . . . . . . . . . . Time 170 | . . . . . . 42 . . . . . 128 . . . . Total Part Build Rating 24 | . . . . . . 8 . . . . . 16 . . . . Parts Repaired . | . . . . . . . . . . . . . . . . . Time . | . . . . . . . . . . . . . . . . . Parts Recycled . | . . . . . . . . . . . . . . . . . Recycled Matter . | . . . . . . . . . . . . . . . . . Retrieved Matter . | . . . . . . . . . . . . . . . . . Retrieved Components . | . . . . . . . . . . . . . . . . . Parts Scanalyzed 1 | . . . . . . 1 . . . . . . . . . . Part Schematics Acquired 1 | . . . . . . 1 . . . . . . . . . . Parts Damaged 1 | . . . . . . 1 . . . . . . . . . . Bothacking | -11 -10 -10 -10 -9 -8 -7 -7 -7 -7 -7 -6 -6 -6 -6 -6 -6 ------------ Run | Scr Mat Min Exi Min Mat Fac Low Low Zio Dee Pro Fac Ext Cet Arc Hub Used RIF Installer . | . . . . . . . . . . . . . . . . . Robots Hacked . | . . . . . . . . . . . . . . . . . Non-combat . | . . . . . . . . . . . . . . . . . Combat . | . . . . . . . . . . . . . . . . . Robot Hacks Applied . | . . . . . . . . . . . . . . . . . Relay Couplers Released . | . . . . . . . . . . . . . . . . . Fabnet Peak Effective % . | . . . . . . . . . . . . . . . . . Robots Rewired 18 | . . . . . . . . . . . . . 18 . . . Allies Hacked 1 | . . . . . . . . . . . . 1 . . . . Hacks Repelled . | . . . . . . . . . . . . . . . . . Allies | -11 -10 -10 -10 -9 -8 -7 -7 -7 -7 -7 -6 -6 -6 -6 -6 -6 -------- Run | Scr Mat Min Exi Min Mat Fac Low Low Zio Dee Pro Fac Ext Cet Arc Hub Total Allies 36 | . . . . . 1 . . . 6 . . 1 28 . . . Largest Group 10 | . . . . . 1 1 . . 6 5 . 1 10 10 3 1 Highest-Rated Group 437 | . . . . . 10 10 . . 297 267 . 24 437 437 224 31 Highest-Rated Ally 159 | . . . . . 10 10 . . 96 96 . 24 159 159 159 31 Total Orders 1 | . . . . . . . . . . . . 1 . . . . PICKUP 1 | . . . . . . . . . . . . 1 . . . . Ally Attacks 270 | . . . . . . . . . . 55 . . 119 80 12 4 Total Damage 5857 | . . . . . . . . . . 1063 . . 2768 1845 96 85 Kills 44 | . . . . . . . . . . 7 . . 20 16 1 . Allies Corrupted . | . . . . . . . . . . . . . . . . . Allies Melted . | . . . . . . . . . . . . . . . . . Intel | -11 -10 -10 -10 -9 -8 -7 -7 -7 -7 -7 -6 -6 -6 -6 -6 -6 ------- Run | Scr Mat Min Exi Min Mat Fac Low Low Zio Dee Pro Fac Ext Cet Arc Hub Robot Analysis Total . | . . . . . . . . . . . . . . . . . Derelict Logs Recovered 6 | . . . . 2 . . 1 1 1 . 1 . . . . . Drone Launches . | . . . . . . . . . . . . . . . . . Drone Recoveries . | . . . . . . . . . . . . . . . . . Exploration | -11 -10 -10 -10 -9 -8 -7 -7 -7 -7 -7 -6 -6 -6 -6 -6 -6 ------------- Run | Scr Mat Min Exi Min Mat Fac Low Low Zio Dee Pro Fac Ext Cet Arc Hub Turns Passed 5809 | 58 299 49 317 365 184 217 142 289 616 528 370 498 1292 316 107 162 Spaces Moved 6103 | 34 165 119 237 240 306 360 260 430 1096 693 434 698 668 194 48 121 Core 113 | 4 7 . 50 . . . . . . . . . . . . 52 Treads 209 | 30 158 . . . . . . . . . . . 21 . . . Legs 863 | . . . . . . . . . . . . . 552 194 48 69 Wheels . | . . . . . . . . . . . . . . . . . Hover . | . . . . . . . . . . . . . . . . . Flight 4918 | . . 119 187 240 306 360 260 430 1096 693 434 698 95 . . . Fastest Speed 40 | 50 100 40 40 117 50 50 50 50 50 50 50 50 50 120 120 50 Average Speed 71 | 148 158 40 130 150 50 50 50 50 51 50 50 50 118 120 120 101 Slowest Speed 330 | 160 200 40 280 277 50 50 50 50 150 50 50 150 240 120 120 330 Overloaded Moves . | . . . . . . . . . . . . . . . . . Propulsion Burnouts . | . . . . . . . . . . . . . . . . . Robots Hopped 4 | . . 1 . . . . . . . . . 3 . . . . Cave-ins Triggered . | . . . . . . . . . . . . . . . . . Time Travels 1 | . . . 1 . . . . . . . . . . . . . Exploration Rate (%) 51 | 5 43 33 61 73 45 12 50 55 86 72 66 22 69 85 79 23 Regions Visited 16 Branch Regions 12 Pre-discovered Areas 3 | . . . . . . . . . 3 . . . . . . . Known Exits Taken 9 | . 1 . . . 1 1 1 . 1 . . 1 1 1 1 . Unknown Exits Taken 7 | 1 . 1 1 1 . . . 1 . 1 1 . . . . . Scrap Searched 7 | . . . . 1 . . . 2 3 . 1 . . . . . Spaces Dug 113 | . . . . . 3 3 . 9 44 19 . 9 23 . . 3 Terrain Destroyed 571 | . . . . . 3 3 4 9 118 121 99 56 151 1 1 5 Melee 24 | . . . . . 3 3 . 3 . . . 9 3 . . 3 Projectile 41 | . . . . . . . 4 6 1 6 4 2 14 1 1 2 AOE 506 | . . . . . . . . . 117 115 95 45 134 . . . Terrain Rammed . | . . . . . . . . . . . . . . . . . Walls Destroyed . | . . . . . . . . . . . . . . . . . Machines Disabled . | . . . . . . . . . . . . . . . . . Actions | -11 -10 -10 -10 -9 -8 -7 -7 -7 -7 -7 -6 -6 -6 -6 -6 -6 --------- Run | Scr Mat Min Exi Min Mat Fac Low Low Zio Dee Pro Fac Ext Cet Arc Hub Total 7152 | 39 182 119 243 245 333 387 270 488 1135 846 573 785 1052 236 75 144 Wait 390 | . . . . . 5 16 . 34 2 115 126 20 49 7 13 3 Move 6079 | 33 164 116 236 239 305 359 259 429 1095 692 433 691 667 193 47 121 Hop 4 | . . 1 . . . . . . . . . 3 . . . . Pick Up 77 | . 4 . 3 3 9 2 5 3 6 5 . 9 19 7 2 . Fast Attach 48 | 6 . . 1 1 1 2 . 2 3 1 1 7 19 1 1 2 Attach 40 | . . 1 2 1 5 1 1 . 4 5 . 3 13 . . 4 Detach 11 | . . 1 . . 1 1 . . . . . 1 3 . . 4 Swap 39 | . . . . . . 1 . 1 3 4 3 6 18 3 . . Drop 66 | . . . 1 1 4 . 3 4 8 3 1 13 19 6 2 1 Fire 163 | . 12 . . . . . 1 12 14 21 9 16 44 19 10 5 Melee 55 | . . . . . 3 5 1 3 . . . 16 23 . . 4 Ram . | . . . . . . . . . . . . . . . . . Kick . | . . . . . . . . . . . . . . . . . Crush 2 | . 2 . . . . . . . . . . . . . . . Escape Stasis 2 | . . . . . . . . . . . . . 2 . . . Rewire 176 | . . . . . . . . . . . . . 176 . . . Trap . | . . . . . . . . . . . . . . . . . Miscellaneous . | . . . . . . . . . . . . . . . . . Route ------- -11/Scrapyard -10/Materials (discovered 3 exits: [*Mat] / *Min x2) -10/Mines (discovered 2 exits: [*Mat] / *Exi) -10/Exiles -9/Mines -8/Materials (discovered 3 exits: *Fac x3) -7/Factory (discovered 4 exits: Sto x2 / *Low x2) -7/Lower Caves -7/Lower Caves -7/Zion (discovered 2 exits: *Dee / [*Pro]) -7/Deep Caves -6/Proximity Caves -6/Factory (discovered 4 exits: *Low x2 / *Ext x2) -6/Extension (discovered 2 exits: *Fac / *Cet) -6/Cetus (discovered 2 exits: *Fac / *Arc) -6/Archives (discovered 3 exits: *Fac / *Hub x2) -6/Hub_04(d) History --------- Turn | Location | Event 37 | -11/Scrapyard | Discovered new exit (range 13) 59 | -11/Scrapyard | Entered Materials 59 | -10/Materials | Discovered new exit (range 14) 258 | -10/Materials | Discovered new exit (range 14) 307 | -10/Materials | Build established: Mutant 320 | -10/Materials | Identified exit to Mines 358 | -10/Materials | Entered Mines 361 | -10/Mines | Core integrity fell below 50% 366 | -10/Mines | Discovered new exit (range 8) 383 | -10/Mines | Lost 4 parts (1p2n1w) 406 | -10/Mines | Deemed a non-threat by the Exiles lab entrance 406 | -10/Mines | Discovered new exit (range 5) 407 | -10/Mines | Entered Exiles 417 | -10/Exiles | Met 8R-AWN 424 | -10/Exiles | Met EX-HEX 437 | -10/Exiles | Met EX-BIN 443 | -10/Exiles | Aligned with FarCom system 443 | -10/Exiles | Given EX-Vault access code 452 | -10/Exiles | Opened EX-Vault 455 | -10/Exiles | Found Prototype Device 455 | -10/Exiles | Identified Chronowheel 455 | -10/Exiles | Activated Chronowheel 455 | -10/Exiles | Spacetime reconverged on an earlier point 457 | -10/Exiles | Found Prototype Ballistic Gun 457 | -10/Exiles | Identified AWS/Gauss 462 | -10/Exiles | Found Prototype Flight Unit 516 | -10/Exiles | Warned to stay clear of 0b10 Research branches 591 | -10/Exiles | Met EX-DEC 711 | -10/Exiles | Discovered new exit (range 14) 724 | -10/Exiles | Stole two prototypes: AWS/Gauss, Flying Fortress v7 724 | -10/Exiles | Entered Mines 835 | -9/Mines | Met a Derelict bent on vengeance 887 | -9/Mines | Met a Derelict who couldn't figure out how to use a Trap Extractor 1022 | -9/Mines | Learned location of 2 exits from Materials 1034 | -9/Mines | Learned Materials security intel 1068 | -9/Mines | Discovered new exit (range 10) 1089 | -9/Mines | Entered Materials 1089 | -8/Materials | Evolved 4 slots: Propulsion x2, Utility x2 1090 | -8/Materials | Identified exit to Factory 1091 | -8/Materials | Identified Flying Fortress v7 1259 | -8/Materials | Discovered exit to Factory (range 15) 1273 | -8/Materials | Entered Factory 1273 | -7/Factory | Accompanied by 1 ally 1273 | -7/Factory | Evolved 2 slots: Utility x1, Weapon x1 1275 | -7/Factory | FarCom data flow suspended 1276 | -7/Factory | Found Powered Armor 1347 | -7/Factory | Fabricated Weapon Cycler (x2) 1402 | -7/Factory | Identified exit to Storage 1402 | -7/Factory | Identified exit to Lower Caves 1490 | -7/Factory | Entered Lower Caves 1490 | -7/Lower Caves | Accompanied by 1 ally 1490 | -7/Lower Caves | Spotted ZH-9RG(f) 1490 | -7/Lower Caves | Spotted LU-SUQ(f) 1491 | -7/Lower Caves | Encountered a Master Thief 1491 | -7/Lower Caves | Encountered a Master Thief 1494 | -7/Lower Caves | Identified exit to Lower Caves 1498 | -7/Lower Caves | AWS/Gauss stolen by Master Thief 1632 | -7/Lower Caves | Entered another Lower Caves area 1638 | -7/Lower Caves | Learned Factory interactive machine intel 1882 | -7/Lower Caves | Spotted 5R-PRE(f) 1883 | -7/Lower Caves | Spotted BK-4TO(f) 1884 | -7/Lower Caves | Encountered a Master Thief 1884 | -7/Lower Caves | Encountered a Master Thief 1884 | -7/Lower Caves | Spotted N2-298(f) 1885 | -7/Lower Caves | Encountered a Master Thief 1918 | -7/Lower Caves | Discovered new exit (range 7) 1921 | -7/Lower Caves | Entered Zion 1929 | -7/Zion | Identified exit to Deep Caves 1952 | -7/Zion | Gained Derelict followers 1978 | -7/Zion | Given A8's code to call for help 1993 | -7/Zion | Discovered new exit (range 10) 2000 | -7/Zion | Found Prototype Device 2000 | -7/Zion | Identified Mobile Refinery Mk. CCLXVII 2210 | -7/Zion | Received a hallucinogenic algorithm 2258 | -7/Zion | Found Prototype Special Weapon 2260 | -7/Zion | Found Prototype Special Weapon 2262 | -7/Zion | Found Prototype Special Weapon 2268 | -7/Zion | Found Prototype Special Weapon 2418 | -7/Zion | Learned location of Quarantine (-2) 2446 | -7/Zion | Learned location of Warlord (-4) 2489 | -7/Zion | Enhanced Grunt warped into view, answering call for help 2489 | -7/Zion | Enhanced Grunt warped into view, answering call for help 2490 | -7/Zion | Identified RU-N14's Throwing Claymores (x4) 2537 | -7/Zion | Entered Deep Caves 2537 | -7/Deep Caves | Accompanied by 5 allies 2679 | -7/Deep Caves | Attacked by Z-Imprinter 2693 | -7/Deep Caves | Destroyed Z-Imprinter 2735 | -7/Deep Caves | Z-Facility disabled 2826 | -7/Deep Caves | Discovered new exit (range 6) 2986 | -7/Deep Caves | Build established: Derelict-Mutant 3013 | -7/Deep Caves | Spotted as-55767 3022 | -7/Deep Caves | Exposed GOLEM chamber 3023 | -7/Deep Caves | Triggered Deep Caves wall 3028 | -7/Deep Caves | Found GOLEM Unit 3065 | -7/Deep Caves | Entered Proximity Caves 3395 | -6/Proximity Caves | Learned Factory garrison access intel 3416 | -6/Proximity Caves | Discovered new exit (range 16) 3435 | -6/Proximity Caves | Entered Factory 3435 | -6/Factory | Evolved 2 slots: Utility x2 3436 | -6/Factory | Loaded intel: 54 interactive machine locations 3437 | -6/Factory | Loaded intel: 4 garrison access locations 3560 | -6/Factory | Identified exit to DSF 3650 | -6/Factory | Fabricated A-15 Conveyor (x1) 3772 | -6/Factory | Fabricated Adv. Force Field (x2) 3784 | -6/Factory | Identified exit to Lower Caves 3784 | -6/Factory | Identified exit to Extension 3889 | -6/Factory | Build established: Hacker-Mutant 3933 | -6/Factory | Entered Extension 3948 | -6/Extension | Disrupted transfer network 3956 | -6/Extension | Rescued a captive Derelict 3974 | -6/Extension | Rescued a captive Derelict 3975 | -6/Extension | Rescued a captive Derelict 4088 | -6/Extension | Rescued a captive Derelict 4283 | -6/Extension | First assault squad dispatched 4454 | -6/Extension | Destroyed 10 combat bots 4458 | -6/Extension | Lost 7 parts (3n4w) 4544 | -6/Extension | Core integrity fell below 50% 4562 | -6/Extension | Lost 6 parts (1p3n2w) 4711 | -6/Extension | Spotted B-75 Beast 4712 | -6/Extension | Rescued a captive Derelict 4713 | -6/Extension | Rescued a captive Derelict 4718 | -6/Extension | Build established: Scavenger-Mutant 4721 | -6/Extension | Spotted B-75 Beast 4832 | -6/Extension | Rescued a captive Derelict 5031 | -6/Extension | Rescued A7 5065 | -6/Extension | Rescued a captive Derelict 5065 | -6/Extension | Rescued a captive Derelict 5187 | -6/Extension | Discovered new exit (range 10) 5189 | -6/Extension | Discovered new exit (range 6) 5210 | -6/Extension | Identified exit to Cetus 5212 | -6/Extension | Identified exit to Factory 5225 | -6/Extension | Entered Cetus 5225 | -6/Cetus | Accompanied by 10 allies (A7) 5230 | -6/Cetus | Acquired a Cetus Manufacturing Module code from A7 5236 | -6/Cetus | Spotted Cetus Guard 5237 | -6/Cetus | Spotted Cetus Guard 5241 | -6/Cetus | Spotted Cetus Guard 5247 | -6/Cetus | Spotted Cetus Guard 5249 | -6/Cetus | Allies destroyed Cetus Guard 5253 | -6/Cetus | Allies destroyed Cetus Guard 5257 | -6/Cetus | Allies destroyed Cetus Guard 5259 | -6/Cetus | Allies destroyed Cetus Guard 5298 | -6/Cetus | Cetus Manufacturing Module disabled 5343 | -6/Cetus | Failed to start Cetus Manufacturing Module 5361 | -6/Cetus | Escorted A7 to Cetus Mainframe 5368 | -6/Cetus | Discovered new exit (range 22) 5400 | -6/Cetus | Spotted Cetus Guard 5400 | -6/Cetus | Spotted Cetus Guard 5400 | -6/Cetus | Allies destroyed Cetus Guard 5403 | -6/Cetus | Spotted Cetus Guard 5404 | -6/Cetus | Spotted Cetus Guard 5407 | -6/Cetus | Allies destroyed Cetus Guard 5409 | -6/Cetus | Allies destroyed Cetus Guard 5418 | -6/Cetus | Allies destroyed Cetus Guard 5423 | -6/Cetus | Discovered exit to Factory (range 21) 5436 | -6/Cetus | Met Revision 17 5540 | -6/Cetus | Identified exit to Archives 5541 | -6/Cetus | Entered Archives 5541 | -6/Archives | Accompanied by 3 allies (A7) 5546 | -6/Archives | Received a hacking code to weaken MAIN.C 5575 | -6/Archives | Build established: Scavenger-Gunner 5594 | -6/Archives | Discovered new exit (range 22) 5599 | -6/Archives | Discovered new exit (range 19) 5600 | -6/Archives | Discovered exit to Factory (range 21) 5635 | -6/Archives | Identified exit to Hub_04(d) 5648 | -6/Archives | Entered Hub_04(d) 5648 | -6/Hub_04(d) | Accompanied by 1 ally 5698 | -6/Hub_04(d) | Spotted B-75 Beast 5754 | -6/Hub_04(d) | Core integrity fell below 20% 5766 | -6/Hub_04(d) | Released all parts (10) 5792 | -6/Hub_04(d) | Lost 5 parts (3n1u1w) 5810 | -6/Hub_04(d) | Destroyed by L-41 Fighter with Axe Last Messages --------------- 05749_ Acquired 50 matter. 05750_ Adv. Assault Cannon destroyed. 05750_ Carbon-fiber Leg destroyed. 05755_ Critical hit (Burn: +37). 05758_ Mak. Salvage Targeting Computer destroyed. 05758_ U-05 Engineer builds a Wall. 05761_ Carbon-fiber Leg destroyed. 05766_ Released F-cell Engine. 05766_ Released Adv. Assault Cannon. 05766_ Released Centrium Medium Armor Plating. 05766_ Released Armor Integrity Analyzer. 05766_ Released Enh. Optical Array. 05766_ Released Carbon-fiber Leg. 05766_ Released Adv. Assault Cannon. 05766_ Released Exp. Heat Sink. 05766_ Released Adv. Signal Interpreter. 05766_ Released Lrg. Storage Unit. 05767_ Acquired Adv. Force Field. 05769_ GOLEM Unit beginning Asb. Alloy Leg integration. 05790_ System corrupted: Component data lost. Map ----- +----------------------------------------------------+ | ?????????????????????????????????????????????????? | | ?????????????????????????????????????????????????? | | ?????????????????????????????????????????????????? | | ?????????????????????????????????????????????????? | | ?????????????????????????????????????????????????? | | ?????????????????????????????????????????????????? | | ?????????????????????????????????????????????????? | | ?????????????????????????????????????????????????? | | ?????????????????????????????????????????????????? | | ?????????????????????????????????????????????????? | | ?????????????????????????????????????????????????? | | ?????????????????????????????????????????????????? | | ?????????????????????????????????????????????????? | | ?????????????????????????????????????????????????? | | ?????????????????????????????????????????????????? | | ?????????????????????????????????????????????????? | | ?????????????????????????????????????????????????? | | ?????????????????????????????????????????????????? | | ?????????????????????????????????????????????????? | | ?????????????????#???????????????????????????????? | | ?????????????????# ##+##+????????????????????????? | | ?????????????????# #???????????????????????? | | ?????????????????# #??###################### | | ?????????????????# #?## # | | ?????????????????# ###; #/ | | ?????????????????# [* @ ;# # | | ?????????????????+ *] l ## " | | ?????????????????# #### #[ | | ?????????????????# #??# ### | | ?????????????????# #??# #?# | | ???????????#######+#### #??# ### | | #########??# #?# ##?#################+## ! | | #??# " " " #?# #####????????????# / | | #??# " " " #?# ?????????????# ## | | " " " " #??# " " " #?# #??????????????+ ##! | | " " " " #??# #?# #??????????????# ## | | " " " " #??# " " " *#?# #?????????????## ## | | #??# " " " ### ! ############### ! ##/ | | ???# " " " + %= # %""""" /=!##[!!![ | | ? ?????# # %= %# " T"" #"%""!!=] | | ###+############+#### # % %""%##!!*]### | | % # #"/###/###?? | | / %"""" "# [ !! #?? | | # """" #" #?? | | #############+#########+##### """" ## """ #?? | | ?????????# #???? ???# """" ## #? | | ?????????# """" "#???? " ??############ """ # | | ?????????# """" "#???? " ?????????????# # | | ?????????# """" "#?????" "????????????# /! # | | ?????????# """" T#????? ????????????+ !! # | +----------------------------------------------------+ Best States ------------- Heat Dissipation 63 Energy Generation 21 Energy Capacity 500 Matter Stores 300 Matter Capacity 300 Sight Range 22 Robot Scan Range 15 Terrain Scan Density 10 ECM Strength 2 Armor Coverage 500 Utility Shielding 66 Weapon Cycling 15 Evasion (%) 70 Targeting Accuracy 8 Launcher Accuracy 20 Armor Integrity Analysis 30 Recoil Reduction 2 Salvage Targeting 4 Offensive Hacking 12 Defensive Hacking 20 Trap Extractor Capacity 6 Item Schematics ----------------- Imp. Salvage Targeting Computer | -7/Factory | Scanalyzed Riot Gun | -7/Zion | Free Barrage Gun | -7/Zion | Free Imp. Core Shielding | -7/Zion | Archive Mak. Salvage Targeting Computer | -7/Zion | Archive Plasma Cannon | -7/Zion | Archive Hpw. Shock Rifle | -7/Zion | Archive Hvy. Battle Rifle | -7/Zion | Archive Cloaking Device | -7/Zion | Archive Mak. Sword | -7/Zion | Archive Adv. Cooling System | -7/Zion | Archive Antigrav System | -7/Zion | Archive Recalibrator | -7/Zion | Archive Coil Gun | -7/Zion | Archive Enh. Optical Array | -7/Zion | Archive Gauss Cannon | -7/Zion | Archive Mak. Terrain Scan Processor | -7/Zion | Archive Imp. System Restoration Module | -7/Zion | Archive Imp. Kinecellerator | -6/Factory | Hacked Robot Schematics ------------------ X-57 Shotgunner | -7/Zion | Archive K-01 Serf | -7/Zion | Archive S-27 Virus | -7/Zion | Archive G-73 Enforcer | -7/Zion | Archive Fabricated ------------ Weapon Cycler | x2 | -7/Factory | Preloaded A-15 Conveyor | x1 | -6/Factory | Preloaded Adv. Force Field | x2 | -6/Factory | Preloaded Alien Tech Used ----------------- None Achievements -------------- None Challenges ------------ None Game ------ Seed DerelictSegregatorBooster Manual? 0 Play Time 01:48:46 Cumulative 257.7 hours Start 2022.04.18 @ 17:44:22 End 2022.04.18 @ 20:13:09 Sessions 1 Manual Loads 0 Difficulty Rogue Special Mode None Game No. 129 Rogue 125 Adventurer 0 Explorer 4 Win Type - Total 15 Types 4/0/2/3/1/2/3/0/0 Lore% 75 Gallery% 80 Achievement% 73 Wizard Run 0 Options --------- ASCII 0 Keyboard 0 Movement Mouse Keybinds 0 Fullscreen 1 Font 18/SmallcapsGlow Map View 76x50 Tactical HUD 1 Map Filters NONE Filters NONE Steam 1 RUN: 7d97a4f5-fff7-42de-9d9c-3efeba231511